[Event "*** Qualifier 1: Titled Tuesday 3|2 Blitz"]
[Site "Chess.com"]
[Date "2017.04.04"]
[Round "4"]
[White "Durarbayli"]
[Black "sergiochess83"]
[Result "0-1"]
[WhiteElo "2621"]
[BlackElo "2679"]
[TimeControl "180+2"]
[EndTime "13:52:19 PDT"]
[Termination "sergiochess83 won by resignation"]

1. e4 {[%clk 0:03:02]} 1... e5 {[%clk 0:03:00.3]} 2. Nf3 {[%clk 0:02:59]} 2...
Nc6 {[%clk 0:03:01.4]} 3. Bb5 {[%clk 0:02:59.3]} 3... a6 {[%clk 0:03:02.7]} 4.
Ba4 {[%clk 0:02:59.6]} 4... Nf6 {[%clk 0:03:03.9]} 5. d3 {[%clk 0:02:59.6]} 5...
b5 {[%clk 0:03:01.2]} 6. Bb3 {[%clk 0:02:59.8]} 6... Bc5 {[%clk 0:03:02.3]} 7.
Nc3 {[%clk 0:02:55.4]} 7... O-O {[%clk 0:02:55.4]} 8. Bg5 {[%clk 0:02:54.9]}
8... h6 {[%clk 0:02:55.7]} 9. Bh4 {[%clk 0:02:55.6]} 9... Be7 {[%clk 0:02:56.8]}
10. O-O {[%clk 0:02:47.2]} 10... d6 {[%clk 0:02:57.9]} 11. a4 {[%clk 0:02:33.6]}
11... Rb8 {[%clk 0:02:56.5]} 12. axb5 {[%clk 0:02:33.2]} 12... axb5 {[%clk
0:02:58.4]} 13. Bxf6 {[%clk 0:02:23.8]} 13... Bxf6 {[%clk 0:02:59.1]} 14. Nd5
{[%clk 0:02:23.7]} 14... g6 {[%clk 0:02:51.1]} 15. Nxf6+ {[%clk 0:02:23.4]}
15... Qxf6 {[%clk 0:02:53]} 16. c3 {[%clk 0:02:21.5]} 16... Bg4 {[%clk
0:02:51.7]} 17. h3 {[%clk 0:02:21.6]} 17... Bxf3 {[%clk 0:02:52.7]} 18. Qxf3
{[%clk 0:02:23.5]} 18... Qxf3 {[%clk 0:02:53.7]} 19. gxf3 {[%clk 0:02:25.2]}
19... b4 {[%clk 0:02:52.8]} 20. Bd5 {[%clk 0:02:23]} 20... Ne7 {[%clk 0:02:46]}
21. Bc4 {[%clk 0:02:22.9]} 21... Rb7 {[%clk 0:02:40.4]} 22. h4 {[%clk
0:02:18.9]} 22... Kg7 {[%clk 0:02:39.1]} 23. Ra4 {[%clk 0:02:12.4]} 23... bxc3
{[%clk 0:02:39.3]} 24. bxc3 {[%clk 0:02:14.3]} 24... g5 {[%clk 0:02:01.2]} 25.
h5 {[%clk 0:02:12.3]} 25... Rfb8 {[%clk 0:01:49.4]} 26. Kg2 {[%clk 0:01:59.9]}
26... c6 {[%clk 0:01:28.7]} 27. Ra5 {[%clk 0:01:51.7]} 27... Ng8 {[%clk
0:01:17.8]} 28. d4 {[%clk 0:01:32.9]} 28... exd4 {[%clk 0:01:14.1]} 29. cxd4
{[%clk 0:01:34.8]} 29... Nf6 {[%clk 0:01:15.2]} 30. Ra6 {[%clk 0:01:32.1]} 30...
Rb6 {[%clk 0:01:13]} 31. Ra7 {[%clk 0:01:32.7]} 31... d5 {[%clk 0:01:12.1]} 32.
Ba2 {[%clk 0:01:25.2]} 32... Nxh5 {[%clk 0:01:07.2]} 33. exd5 {[%clk 0:00:46.9]}
33... cxd5 {[%clk 0:01:08.1]} 34. Re1 {[%clk 0:00:47.2]} 34... Nf4+ {[%clk
0:01:05.2]} 35. Kg3 {[%clk 0:00:47.6]} 35... R8b7 {[%clk 0:00:58]} 36. Ra5
{[%clk 0:00:37.5]} 36... Rb5 {[%clk 0:00:56.5]} 37. Ra8 {[%clk 0:00:30.8]} 37...
Rb4 {[%clk 0:00:53.8]} 38. Ree8 {[%clk 0:00:31.2]} 38... Rxd4 {[%clk 0:00:42.2]}
39. Rg8+ {[%clk 0:00:25.5]} 39... Kf6 {[%clk 0:00:43.4]} 40. Rh8 {[%clk
0:00:21.4]} 40... h5 {[%clk 0:00:39.1]} 41. Rh6+ {[%clk 0:00:22.9]} 41... Kg7
{[%clk 0:00:31.7]} 42. Rah8 {[%clk 0:00:22.8]} 42... h4+ {[%clk 0:00:31.8]} 43.
Kh2 {[%clk 0:00:21.8]} 43... Rb2 {[%clk 0:00:30.8]} 44. R6h7+ {[%clk 0:00:21.2]}
44... Kf6 {[%clk 0:00:29.6]} 45. Re8 {[%clk 0:00:22.4]} 45... Rxf2+ {[%clk
0:00:28.4]} 0-1

[Event "*** Qualifier 1: Titled Tuesday 3|2 Blitz"]
[Site "Chess.com"]
[Date "2017.04.04"]
[Round "4"]
[White "daro94"]
[Black "rubhani"]
[Result "1-0"]
[WhiteElo "2716"]
[BlackElo "2416"]
[TimeControl "180+2"]
[EndTime "13:52:21 PDT"]
[Termination "daro94 won by resignation"]

1. d4 {[%clk 0:03:02]} 1... Nf6 {[%clk 0:03:00.4]} 2. c4 {[%clk 0:03:02.7]} 2...
e6 {[%clk 0:03:01.6]} 3. Nf3 {[%clk 0:03:03.7]} 3... b6 {[%clk 0:02:59.7]} 4. g3
{[%clk 0:03:03.9]} 4... Bb7 {[%clk 0:03:01]} 5. Bg2 {[%clk 0:03:05.3]} 5... g6
{[%clk 0:03:02.6]} 6. Nc3 {[%clk 0:03:04.6]} 6... Bg7 {[%clk 0:03:03.5]} 7. d5
{[%clk 0:03:03.6]} 7... O-O {[%clk 0:03:03.9]} 8. O-O {[%clk 0:03:04.3]} 8...
Na6 {[%clk 0:03:02.3]} 9. Nd4 {[%clk 0:03:02.6]} 9... exd5 {[%clk 0:03:00.3]}
10. cxd5 {[%clk 0:03:03.2]} 10... Re8 {[%clk 0:03:01.2]} 11. Re1 {[%clk
0:02:41.6]} 11... Nc5 {[%clk 0:02:41.8]} 12. Nb3 {[%clk 0:01:59.7]} 12... Nce4
{[%clk 0:02:35.9]} 13. Nxe4 {[%clk 0:01:40.4]} 13... Nxe4 {[%clk 0:02:36.8]} 14.
f3 {[%clk 0:01:38]} 14... Nd6 {[%clk 0:02:10.9]} 15. e4 {[%clk 0:01:39.3]} 15...
c5 {[%clk 0:02:04.2]} 16. f4 {[%clk 0:01:21.4]} 16... Nb5 {[%clk 0:01:34.9]} 17.
a4 {[%clk 0:01:03.3]} 17... Nd4 {[%clk 0:01:35.3]} 18. Nxd4 {[%clk 0:01:04.7]}
18... Bxd4+ {[%clk 0:01:35.8]} 19. Kh1 {[%clk 0:01:03]} 19... d6 {[%clk
0:01:37.1]} 20. Rb1 {[%clk 0:00:56.3]} 20... a5 {[%clk 0:01:30.1]} 21. b3 {[%clk
0:00:52.3]} 21... Ba6 {[%clk 0:01:26.3]} 22. Bb2 {[%clk 0:00:51.9]} 22... Bxb2
{[%clk 0:01:25.7]} 23. Rxb2 {[%clk 0:00:53.2]} 23... b5 {[%clk 0:01:27.6]} 24.
axb5 {[%clk 0:00:40.7]} 24... Bxb5 {[%clk 0:01:28.8]} 25. e5 {[%clk 0:00:42.6]}
25... c4 {[%clk 0:01:24.6]} 26. bxc4 {[%clk 0:00:39.8]} 26... Bxc4 {[%clk
0:01:25.3]} 27. Qd4 {[%clk 0:00:40]} 27... Rc8 {[%clk 0:01:16.5]} 28. Rb6 {[%clk
0:00:24.3]} 28... dxe5 {[%clk 0:00:59.1]} 29. fxe5 {[%clk 0:00:26.2]} 29... a4
{[%clk 0:00:42.9]} 30. d6 {[%clk 0:00:27.5]} 30... Re6 {[%clk 0:00:40.8]} 31.
Rb7 {[%clk 0:00:22.4]} 31... Qa5 {[%clk 0:00:30.7]} 32. Rc1 {[%clk 0:00:12.9]}
32... Rxe5 {[%clk 0:00:27]} 33. Re7 {[%clk 0:00:07.6]} 33... Rd5 {[%clk
0:00:17.1]} 34. Qf6 {[%clk 0:00:06.4]} 34... Rd2 {[%clk 0:00:09.5]} 35. d7
{[%clk 0:00:05.5]} 35... Rd8 {[%clk 0:00:08]} 36. Re8+ {[%clk 0:00:06.8]} 1-0

[Event "*** Qualifier 1: Titled Tuesday 3|2 Blitz"]
[Site "Chess.com"]
[Date "2017.04.04"]
[Round "4"]
[White "Blitzstream"]
[Black "Zlatan56"]
[Result "0-1"]
[WhiteElo "2502"]
[BlackElo "2657"]
[TimeControl "180+2"]
[EndTime "13:52:26 PDT"]
[Termination "Zlatan56 won by checkmate"]

1. d4 {[%clk 0:03:02]} 1... g6 {[%clk 0:03:02]} 2. h4 {[%clk 0:02:59.7]} 2...
Bg7 {[%clk 0:02:54]} 3. h5 {[%clk 0:03:00.8]} 3... c5 {[%clk 0:02:53.8]} 4. c3
{[%clk 0:02:56.2]} 4... Qb6 {[%clk 0:02:43.8]} 5. h6 {[%clk 0:02:56.5]} 5... Bf6
{[%clk 0:02:43.4]} 6. Nf3 {[%clk 0:02:57.3]} 6... d6 {[%clk 0:02:42.9]} 7. dxc5
{[%clk 0:02:42.6]} 7... Qxc5 {[%clk 0:02:41.6]} 8. Nbd2 {[%clk 0:02:41.3]} 8...
Nc6 {[%clk 0:02:37.8]} 9. Ne4 {[%clk 0:02:39.3]} 9... Qb6 {[%clk 0:02:37.9]} 10.
Qb3 {[%clk 0:02:23.1]} 10... Bf5 {[%clk 0:02:31.3]} 11. Qxb6 {[%clk 0:02:20.5]}
11... axb6 {[%clk 0:02:33.2]} 12. Nxf6+ {[%clk 0:02:18.5]} 12... Nxf6 {[%clk
0:02:35.1]} 13. Be3 {[%clk 0:02:10.9]} 13... b5 {[%clk 0:02:35.6]} 14. Nd4
{[%clk 0:02:10.3]} 14... b4 {[%clk 0:02:28.5]} 15. Nxf5 {[%clk 0:02:06.2]} 15...
gxf5 {[%clk 0:02:28.6]} 16. g3 {[%clk 0:01:32]} 16... bxc3 {[%clk 0:02:26]} 17.
bxc3 {[%clk 0:01:33.9]} 17... Ra3 {[%clk 0:02:25.7]} 18. Bg2 {[%clk 0:01:30.9]}
18... Ne4 {[%clk 0:02:20.8]} 19. Rb1 {[%clk 0:00:45.6]} 19... Rxa2 {[%clk
0:02:18.8]} 20. O-O {[%clk 0:00:43.5]} 20... Nd8 {[%clk 0:02:15]} 21. Rfc1
{[%clk 0:00:28.4]} 21... O-O {[%clk 0:02:09.7]} 22. Rb5 {[%clk 0:00:18.1]} 22...
e6 {[%clk 0:01:55.7]} 23. g4 {[%clk 0:00:19.4]} 23... d5 {[%clk 0:01:41.5]} 24.
gxf5 {[%clk 0:00:19.6]} 24... Nd6 {[%clk 0:01:42.2]} 25. Rb4 {[%clk 0:00:19.6]}
25... Nxf5 {[%clk 0:01:42.3]} 26. Rg4+ {[%clk 0:00:20.1]} 26... Kh8 {[%clk
0:01:42.9]} 27. Bb6 {[%clk 0:00:21.2]} 27... Nc6 {[%clk 0:01:38.5]} 28. e4
{[%clk 0:00:21.8]} 28... dxe4 {[%clk 0:01:37.6]} 29. Bxe4 {[%clk 0:00:23.7]}
29... Nxh6 {[%clk 0:01:37.6]} 30. Rg5 {[%clk 0:00:22.4]} 30... Rg8 {[%clk
0:01:35.8]} 31. Rxg8+ {[%clk 0:00:17.1]} 31... Kxg8 {[%clk 0:01:35.2]} 32. Rd1
{[%clk 0:00:18.5]} 32... Rb2 {[%clk 0:01:20.6]} 33. Bc5 {[%clk 0:00:19.3]} 33...
Nf5 {[%clk 0:01:17.6]} 34. Rd7 {[%clk 0:00:19]} 34... Kg7 {[%clk 0:01:15.8]} 35.
Rc7 {[%clk 0:00:16.1]} 35... Kg6 {[%clk 0:01:09.9]} 36. Rc8 {[%clk 0:00:16.3]}
36... h5 {[%clk 0:01:04.2]} 37. Rg8+ {[%clk 0:00:16.5]} 37... Kf6 {[%clk
0:01:04.9]} 38. Rh8 {[%clk 0:00:17.3]} 38... h4 {[%clk 0:01:03.5]} 39. c4 {[%clk
0:00:18.5]} 39... Re2 {[%clk 0:00:58]} 40. f3 {[%clk 0:00:18.2]} 40... Ng3
{[%clk 0:00:50.5]} 41. Bd3 {[%clk 0:00:06.5]} 41... Rd2 {[%clk 0:00:50]} 42.
Rh6+ {[%clk 0:00:07.4]} 42... Kg7 {[%clk 0:00:46.5]} 43. Rh7+ {[%clk 0:00:07.5]}
43... Kg8 {[%clk 0:00:47.1]} 44. Bd4 {[%clk 0:00:04.8]} 44... Nxd4 {[%clk
0:00:44.5]} 45. Rxh4 {[%clk 0:00:05.9]} 45... Nxf3# {[%clk 0:00:43.7]} 0-1

[Event "*** Qualifier 1: Titled Tuesday 3|2 Blitz"]
[Site "Chess.com"]
[Date "2017.04.04"]
[Round "4"]
[White "AndrewMcStone"]
[Black "indfraeng"]
[Result "0-1"]
[WhiteElo "1995"]
[BlackElo "1765"]
[TimeControl "180+2"]
[EndTime "13:52:26 PDT"]
[Termination "indfraeng won by checkmate"]

1. d4 {[%clk 0:03:02]} 1... Nf6 {[%clk 0:02:59.1]} 2. c4 {[%clk 0:03:02.8]} 2...
c5 {[%clk 0:02:54.7]} 3. d5 {[%clk 0:03:02.7]} 3... e6 {[%clk 0:02:55.9]} 4. Nc3
{[%clk 0:03:03.9]} 4... exd5 {[%clk 0:02:57.1]} 5. cxd5 {[%clk 0:03:05.8]} 5...
d6 {[%clk 0:02:58.5]} 6. e4 {[%clk 0:03:07.2]} 6... g6 {[%clk 0:02:59.5]} 7.
Nge2 {[%clk 0:03:08.4]} 7... Bg7 {[%clk 0:02:59.1]} 8. Ng3 {[%clk 0:03:09.7]}
8... a6 {[%clk 0:02:59.1]} 9. a4 {[%clk 0:03:09]} 9... O-O {[%clk 0:02:59.6]}
10. Be2 {[%clk 0:03:10]} 10... Nbd7 {[%clk 0:03:00.2]} 11. O-O {[%clk
0:03:07.6]} 11... Ne8 {[%clk 0:02:31.9]} 12. Bf4 {[%clk 0:02:26.5]} 12... Qe7
{[%clk 0:02:26.7]} 13. Qd2 {[%clk 0:02:21]} 13... Nc7 {[%clk 0:01:56.6]} 14.
Rab1 {[%clk 0:01:59.9]} 14... Rb8 {[%clk 0:01:55.3]} 15. Bg5 {[%clk 0:01:54.2]}
15... f6 {[%clk 0:01:54.5]} 16. Be3 {[%clk 0:01:53.4]} 16... b5 {[%clk
0:01:52.4]} 17. axb5 {[%clk 0:01:54.3]} 17... axb5 {[%clk 0:01:54.3]} 18. b4
{[%clk 0:01:53.2]} 18... c4 {[%clk 0:01:40.3]} 19. h3 {[%clk 0:01:42]} 19... f5
{[%clk 0:01:32.1]} 20. exf5 {[%clk 0:01:42]} 20... gxf5 {[%clk 0:01:32.2]} 21.
Bd4 {[%clk 0:01:08.1]} 21... Ne5 {[%clk 0:01:12.5]} 22. f4 {[%clk 0:01:04.1]}
22... Ng6 {[%clk 0:01:06.8]} 23. Nh5 {[%clk 0:00:54.6]} 23... Bxd4+ {[%clk
0:01:02.4]} 24. Qxd4 {[%clk 0:00:56.5]} 24... Ne8 {[%clk 0:00:59.3]} 25. Rbe1
{[%clk 0:00:51.3]} 25... Qf7 {[%clk 0:00:58.2]} 26. Bd1 {[%clk 0:00:28.6]} 26...
Nf6 {[%clk 0:00:57.4]} 27. Ng3 {[%clk 0:00:17.4]} 27... Bb7 {[%clk 0:00:56.8]}
28. Re6 {[%clk 0:00:16.3]} 28... Nxd5 {[%clk 0:00:45.8]} 29. Rxd6 {[%clk
0:00:13.3]} 29... Nxc3 {[%clk 0:00:35.4]} 30. Qxc3 {[%clk 0:00:14.2]} 30... Rfd8
{[%clk 0:00:36.1]} 31. Rxd8+ {[%clk 0:00:12]} 31... Rxd8 {[%clk 0:00:38]} 32.
Nh5 {[%clk 0:00:13.1]} 32... Rd3 {[%clk 0:00:37.2]} 33. Qb2 {[%clk 0:00:11.6]}
33... Nh4 {[%clk 0:00:32.4]} 34. Nf6+ {[%clk 0:00:05.2]} 34... Kf8 {[%clk
0:00:33.5]} 35. Bf3 {[%clk 0:00:02.2]} 35... Nxf3+ {[%clk 0:00:31.8]} 36. gxf3
{[%clk 0:00:04.1]} 36... Bxf3 {[%clk 0:00:29.6]} 37. Rf2 {[%clk 0:00:03.6]}
37... Qg6+ {[%clk 0:00:30.2]} 38. Kf1 {[%clk 0:00:04]} 38... Rd1# {[%clk
0:00:30.8]} 0-1

[Event "*** Qualifier 1: Titled Tuesday 3|2 Blitz"]
[Site "Chess.com"]
[Date "2017.04.04"]
[Round "4"]
[White "ohusbands"]
[Black "Grebeniuk-S"]
[Result "1-0"]
[WhiteElo "2228"]
[BlackElo "2409"]
[TimeControl "180+2"]
[EndTime "13:52:36 PDT"]
[Termination "ohusbands won by resignation"]

1. e4 {[%clk 0:03:02]} 1... d5 {[%clk 0:03:00.5]} 2. exd5 {[%clk 0:03:00.6]}
2... Qxd5 {[%clk 0:03:02.4]} 3. Nf3 {[%clk 0:02:46.4]} 3... Nf6 {[%clk
0:03:02.6]} 4. d4 {[%clk 0:02:47.5]} 4... Bg4 {[%clk 0:03:02.3]} 5. Be2 {[%clk
0:02:46.4]} 5... Nc6 {[%clk 0:03:02.7]} 6. c4 {[%clk 0:02:47.3]} 6... Qf5 {[%clk
0:03:01.9]} 7. Be3 {[%clk 0:02:49.2]} 7... O-O-O {[%clk 0:03:01.4]} 8. Nbd2
{[%clk 0:02:44.8]} 8... e5 {[%clk 0:02:30.3]} 9. d5 {[%clk 0:02:42.9]} 9... Nb4
{[%clk 0:02:29.2]} 10. O-O {[%clk 0:01:00.6]} 10... Nc2 {[%clk 0:02:25.1]} 11.
Nh4 {[%clk 0:01:01.6]} 11... Nxe3 {[%clk 0:02:12.5]} 12. fxe3 {[%clk 0:01:00]}
12... Qh5 {[%clk 0:01:52.3]} 13. Bxg4+ {[%clk 0:00:33.1]} 13... Nxg4 {[%clk
0:01:52.3]} 14. h3 {[%clk 0:00:32.8]} 14... Qxh4 {[%clk 0:01:47.3]} 15. hxg4
{[%clk 0:00:25.1]} 15... Bc5 {[%clk 0:01:45.8]} 16. Qf3 {[%clk 0:00:23.3]} 16...
Rhf8 {[%clk 0:01:23.7]} 17. Ne4 {[%clk 0:00:24]} 17... Be7 {[%clk 0:01:11.6]}
18. Qf5+ {[%clk 0:00:20.3]} 18... Kb8 {[%clk 0:01:09.2]} 19. Qxe5 {[%clk
0:00:21.5]} 19... Bd6 {[%clk 0:00:45.6]} 20. Nxd6 {[%clk 0:00:21.1]} 20... cxd6
{[%clk 0:00:44.9]} 21. Qf4 {[%clk 0:00:18.7]} 21... Qe7 {[%clk 0:00:43.5]} 22.
c5 {[%clk 0:00:18]} 22... Ka8 {[%clk 0:00:42.2]} 23. c6 {[%clk 0:00:17.9]} 23...
Qe5 {[%clk 0:00:30.3]} 24. Qxe5 {[%clk 0:00:15.2]} 24... dxe5 {[%clk 0:00:32.2]}
25. cxb7+ {[%clk 0:00:04.6]} 25... Kxb7 {[%clk 0:00:34.1]} 26. e4 {[%clk
0:00:06.3]} 26... Rd6 {[%clk 0:00:31.1]} 27. Rac1 {[%clk 0:00:07.7]} 27... Rb6
{[%clk 0:00:30.8]} 28. b3 {[%clk 0:00:08.6]} 28... Rb4 {[%clk 0:00:31.4]} 29.
Rc4 {[%clk 0:00:08.6]} 29... a5 {[%clk 0:00:30.2]} 30. Rfc1 {[%clk 0:00:08.8]}
30... Rxc4 {[%clk 0:00:23.4]} 31. bxc4 {[%clk 0:00:07.8]} 31... Kc7 {[%clk
0:00:23.1]} 32. c5 {[%clk 0:00:09]} 32... Rb8 {[%clk 0:00:24.5]} 33. g5 {[%clk
0:00:08.7]} 33... Rb4 {[%clk 0:00:25.3]} 34. Rf1 {[%clk 0:00:09.4]} 34... Rxe4
{[%clk 0:00:20.1]} 35. Rxf7+ {[%clk 0:00:10.3]} 35... Kc8 {[%clk 0:00:21.4]} 36.
c6 {[%clk 0:00:08.2]} 36... Rd4 {[%clk 0:00:21.8]} 37. Rd7 {[%clk 0:00:08.4]}
37... e4 {[%clk 0:00:18]} 38. Kf2 {[%clk 0:00:09.3]} 38... Rd3 {[%clk
0:00:18.1]} 39. Ke2 {[%clk 0:00:09.7]} 39... Ra3 {[%clk 0:00:13.4]} 40. Rxg7
{[%clk 0:00:07.6]} 40... Rxa2+ {[%clk 0:00:14.6]} 41. Ke3 {[%clk 0:00:08.9]}
41... Rxg2 {[%clk 0:00:11.4]} 42. d6 {[%clk 0:00:10.2]} 1-0

[Event "*** Qualifier 1: Titled Tuesday 3|2 Blitz"]
[Site "Chess.com"]
[Date "2017.04.04"]
[Round "4"]
[White "proxy6"]
[Black "Th3ChessViking"]
[Result "0-1"]
[WhiteElo "2211"]
[BlackElo "2335"]
[TimeControl "180+2"]
[EndTime "13:52:37 PDT"]
[Termination "Th3ChessViking won by checkmate"]

1. e4 {[%clk 0:03:02]} 1... e6 {[%clk 0:02:55.9]} 2. d4 {[%clk 0:03:02.5]} 2...
d5 {[%clk 0:02:57.4]} 3. Nc3 {[%clk 0:03:04.1]} 3... Bb4 {[%clk 0:02:58.1]} 4.
e5 {[%clk 0:03:04.7]} 4... Qd7 {[%clk 0:02:58.2]} 5. h4 {[%clk 0:03:02.3]} 5...
b6 {[%clk 0:02:56.2]} 6. a3 {[%clk 0:02:59.7]} 6... Bxc3+ {[%clk 0:02:56.3]} 7.
bxc3 {[%clk 0:03:01.6]} 7... Ba6 {[%clk 0:02:56.9]} 8. Bd3 {[%clk 0:03:01.6]}
8... Bxd3 {[%clk 0:02:41.2]} 9. cxd3 {[%clk 0:03:02.7]} 9... Ne7 {[%clk
0:02:42.7]} 10. h5 {[%clk 0:03:03]} 10... h6 {[%clk 0:02:42.9]} 11. Rh4 {[%clk
0:02:56.1]} 11... Nbc6 {[%clk 0:02:26.8]} 12. Rf4 {[%clk 0:02:56.6]} 12... O-O
{[%clk 0:02:16.4]} 13. g4 {[%clk 0:02:44.1]} 13... Kh7 {[%clk 0:01:56.1]} 14.
Nh3 {[%clk 0:02:43.1]} 14... Rac8 {[%clk 0:01:44]} 15. g5 {[%clk 0:02:42.8]}
15... Nf5 {[%clk 0:01:43.6]} 16. Qf3 {[%clk 0:02:32.4]} 16... Nce7 {[%clk
0:01:38.4]} 17. a4 {[%clk 0:02:25.1]} 17... c5 {[%clk 0:01:38.8]} 18. dxc5
{[%clk 0:02:24.2]} 18... bxc5 {[%clk 0:01:35.9]} 19. Kf1 {[%clk 0:01:50.7]}
19... d4 {[%clk 0:01:28.8]} 20. c4 {[%clk 0:01:48.2]} 20... Rb8 {[%clk 0:01:28]}
21. Kg1 {[%clk 0:01:21.4]} 21... Rb3 {[%clk 0:01:27.3]} 22. Kh2 {[%clk
0:01:17.2]} 22... Rfb8 {[%clk 0:01:03.4]} 23. Rg4 {[%clk 0:01:03.1]} 23... Qb7
{[%clk 0:00:58.5]} 24. Qf4 {[%clk 0:00:37.1]} 24... Rxd3 {[%clk 0:00:35.9]} 25.
gxh6 {[%clk 0:00:35.3]} 25... gxh6 {[%clk 0:00:27.2]} 26. Ba3 {[%clk 0:00:14.4]}
26... Qf3 {[%clk 0:00:16.8]} 27. Qxf3 {[%clk 0:00:14.7]} 27... Rxf3 {[%clk
0:00:18.7]} 28. Bxc5 {[%clk 0:00:14.6]} 28... Rbb3 {[%clk 0:00:18.1]} 29. Nf4
{[%clk 0:00:05]} 29... Rxf2+ {[%clk 0:00:18.4]} 30. Kg1 {[%clk 0:00:05.5]} 30...
Rff3 {[%clk 0:00:16.8]} 31. Bxa7 {[%clk 0:00:03.3]} 31... Ne3 {[%clk 0:00:11.4]}
32. Rh4 {[%clk 0:00:04]} 32... N7f5 {[%clk 0:00:11.9]} 33. Ne2 {[%clk
0:00:02.4]} 33... Nxh4 {[%clk 0:00:11.6]} 34. Nxd4 {[%clk 0:00:04]} 34... Rg3+
{[%clk 0:00:10.5]} 35. Kh2 {[%clk 0:00:04.4]} 35... Rg2+ {[%clk 0:00:09.9]} 36.
Kh3 {[%clk 0:00:05.8]} 36... Rd3 {[%clk 0:00:08.7]} 37. Kxh4 {[%clk 0:00:06.1]}
37... Nxc4 {[%clk 0:00:08.2]} 38. Rc1 {[%clk 0:00:05.9]} 38... Nxe5 {[%clk
0:00:09.1]} 39. a5 {[%clk 0:00:05]} 39... Rg5 {[%clk 0:00:08.7]} 40. Rf1 {[%clk
0:00:02.4]} 40... Rg4# {[%clk 0:00:09.7]} 0-1

[Event "*** Qualifier 1: Titled Tuesday 3|2 Blitz"]
[Site "Chess.com"]
[Date "2017.04.04"]
[Round "4"]
[White "ZEN-22"]
[Black "FairChess_on_YouTube"]
[Result "0-1"]
[WhiteElo "2337"]
[BlackElo "2727"]
[TimeControl "180+2"]
[EndTime "13:52:45 PDT"]
[Termination "FairChess_on_YouTube won by resignation"]

1. e4 {[%clk 0:02:57.2]} 1... c5 {[%clk 0:02:59.5]} 2. d4 {[%clk 0:02:56.7]}
2... cxd4 {[%clk 0:02:59.9]} 3. c3 {[%clk 0:02:57.3]} 3... d5 {[%clk 0:02:56.8]}
4. exd5 {[%clk 0:02:50.5]} 4... Nf6 {[%clk 0:02:56.9]} 5. c4 {[%clk 0:02:44.7]}
5... e5 {[%clk 0:02:57.1]} 6. f4 {[%clk 0:02:45.2]} 6... e4 {[%clk 0:02:25.2]}
7. Qxd4 {[%clk 0:02:41.8]} 7... Nc6 {[%clk 0:02:25.7]} 8. Qf2 {[%clk 0:02:35]}
8... Nb4 {[%clk 0:02:10.7]} 9. a3 {[%clk 0:02:32]} 9... Ng4 {[%clk 0:02:11.1]}
10. Qd2 {[%clk 0:02:15.4]} 10... e3 {[%clk 0:02:12]} 11. Qc3 {[%clk 0:02:13.8]}
11... Qa5 {[%clk 0:02:11.7]} 12. Ke2 {[%clk 0:01:53.4]} 12... Bf5 {[%clk
0:01:59.9]} 13. h3 {[%clk 0:01:53.2]} 13... Bd3+ {[%clk 0:01:42.9]} 14. Kf3
{[%clk 0:01:53.6]} 14... Bxf1 {[%clk 0:01:42.4]} 15. hxg4 {[%clk 0:01:52.9]}
15... Qa6 {[%clk 0:01:27.7]} 16. Ne2 {[%clk 0:01:15.2]} 16... Bxe2+ {[%clk
0:01:20.5]} 17. Kxe2 {[%clk 0:01:16.1]} 17... Nxd5 {[%clk 0:01:10.5]} 18. Qe5+
{[%clk 0:01:13.2]} 18... Ne7 {[%clk 0:01:11.2]} 19. Qb5+ {[%clk 0:00:56.8]}
19... Qxb5 {[%clk 0:01:12.1]} 20. cxb5 {[%clk 0:00:58.2]} 20... Nd5 {[%clk
0:01:13.7]} 21. Bxe3 {[%clk 0:00:58]} 21... Bd6 {[%clk 0:01:05.1]} 22. g3 {[%clk
0:00:52.5]} 22... Rc8 {[%clk 0:00:53.7]} 23. Rc1 {[%clk 0:00:20.3]} 23... Rxc1
{[%clk 0:00:44.5]} 24. Bxc1 {[%clk 0:00:20.4]} 24... h5 {[%clk 0:00:46.1]} 25.
gxh5 {[%clk 0:00:19.9]} 25... Rxh5 {[%clk 0:00:48]} 26. Nc3 {[%clk 0:00:21.4]}
26... Nxc3+ {[%clk 0:00:46.6]} 27. bxc3 {[%clk 0:00:23.3]} 27... Rxb5 {[%clk
0:00:47.8]} 28. Kd3 {[%clk 0:00:23.9]} 28... Rd5+ {[%clk 0:00:41.1]} 29. Ke2
{[%clk 0:00:23.9]} 29... Ra5 {[%clk 0:00:40.3]} 30. Bb2 {[%clk 0:00:21.2]} 30...
b5 {[%clk 0:00:36.3]} 31. Rd1 {[%clk 0:00:20.8]} 31... Be7 {[%clk 0:00:29.4]}
32. Kf3 {[%clk 0:00:19.6]} 32... Ra4 {[%clk 0:00:26.7]} 33. Ra1 {[%clk
0:00:20.9]} 33... f5 {[%clk 0:00:26.3]} 34. Bc1 {[%clk 0:00:22.1]} 34... g6
{[%clk 0:00:26.5]} 35. Rb1 {[%clk 0:00:23.6]} 35... a6 {[%clk 0:00:27.9]} 36.
Rb3 {[%clk 0:00:24.5]} 36... Kd7 {[%clk 0:00:29.2]} 37. g4 {[%clk 0:00:26]}
37... Ke6 {[%clk 0:00:28.4]} 38. g5 {[%clk 0:00:26.9]} 38... Bd6 {[%clk
0:00:26.1]} 39. Rb1 {[%clk 0:00:28]} 39... Bxa3 {[%clk 0:00:25.1]} 40. Bxa3
{[%clk 0:00:28.2]} 40... Rxa3 {[%clk 0:00:27]} 41. Re1+ {[%clk 0:00:28.6]} 41...
Kd6 {[%clk 0:00:27.2]} 42. Rd1+ {[%clk 0:00:29.8]} 42... Kc5 {[%clk 0:00:23.8]}
43. Rd3 {[%clk 0:00:30.9]} 43... b4 {[%clk 0:00:16.4]} 44. Rd8 {[%clk
0:00:29.1]} 44... Rxc3+ {[%clk 0:00:16.1]} 45. Ke2 {[%clk 0:00:30.5]} 45... Rc4
{[%clk 0:00:16.7]} 46. Ke3 {[%clk 0:00:27.3]} 46... Re4+ {[%clk 0:00:17.1]} 47.
Kf3 {[%clk 0:00:27.9]} 47... b3 {[%clk 0:00:18.4]} 48. Rb8 {[%clk 0:00:27.7]}
48... Rb4 {[%clk 0:00:18.9]} 49. Rd8 {[%clk 0:00:29.1]} 49... b2 {[%clk
0:00:19.4]} 50. Rc8+ {[%clk 0:00:31]} 50... Kb5 {[%clk 0:00:20.5]} 0-1